[Event "SixDays Budapest January-IMA 2023"]
[Site "Budapest"]
[Date "2023.01.25"]
[Round "4.5"]
[White "Polyik, Peter"]
[Black "Taragan, Uri"]
[Result "1-0"]
[ECO "C02"]
[WhiteElo "2323"]
[BlackElo "1733"]
[Annotator "TA"]
[PlyCount "73"]
[EventDate "2023.01.23"]
[EventType "tourn"]
[EventCountry "HUN"]
[SourceTitle "playchess.com"]
[Source "ChessBase"]
[SourceQuality "1"]
[TimeControl "5400+30"]

{[%evp 11,73,0,0,-25,-12,-42,30,12,44,41,110,55,71,-133,16,13,17,20,13,27,16,14,296,349,364,357,362,206,229,218,358,349,367,192,204,22,11,0,0,0,0,-38,-56,-110,0,0,0,0,36,34,75,43,432,433,437,429,404,434,29989,29990,29991,29992,29992,29993]} 1. e4 {[%emt 0:07:11]} e6 {[%emt 0:00:09]} 2. d4 {[%emt 0:00:18]} d5 {[%emt 0:00:07]} 3. e5 {[%emt 0:00:05]} c5 {[%emt 0:00:07]} 4. c3 {[%emt 0:00:07]} Qb6 {[%emt 0:00:06]} 5. Nf3 {[%emt 0:00:07]} Nc6 {[%emt 0:00:08]} 6. Bd3 {[%emt 0:00:31]} cxd4 {[%emt 0:00:17]} 7. O-O $1 {[%emt 0:00:09][%mdl 4] is currently scoring better than 7.cxd4. C02: French: Advance Variation.} Bd7 {[%emt 0:03:18]} 8. Re1 {[%emt 0:00:41]} Be7 {[%emt 0:08:55] [#]} (8... Rc8 $15) 9. c4 $146 {[%emt 0:11:54] White has an edge.} ({Predecessor:} 9. Nbd2 Nh6 10. Nb3 dxc3 11. bxc3 Nf5 12. Rb1 Qc7 13. Bf4 g6 14. h3 O-O-O 15. g4 {1-0 Henriquez Villagra,C (2620)-Boixader Arbo,X (2038) Barcelona Sants op-A 23rd 2022 (1)}) 9... Nb4 {[%emt 0:29:50]} 10. cxd5 {[%emt 0:04:32]} Rc8 {[%emt 0:04:16]} (10... exd5 $14 11. a3 Nc6) 11. Na3 {[%emt 0:06:11]} (11. dxe6 $16 Bxe6 12. Na3) 11... exd5 $14 {[%emt 0:05:40] [#]} 12. e6 $2 {[%emt 0:21:58]} Bxe6 {[%emt 0:10:33]} ({Black should play} 12... fxe6 $17 {White must now prevent ...Nf6.} 13. Nc2 Nxc2 14. Bxc2 Nf6) 13. Bb5+ $11 {[%emt 0:02:48]} Nc6 {[%emt 0:07:05] And now ...Bxa3 would win.} 14. Nxd4 {[%emt 0:01:07]} (14. Qxd4 Nf6 15. Qxb6 axb6 $15) 14... Nf6 {[%emt 0:10:48]} 15. Nxe6 {[%emt 0:13:16]} fxe6 {[%emt 0:00:06]} 16. Rxe6 Kf7 $2 {[%emt 0:01:28][%mdl 8192] [#]} (16... Qd8 $11 {and Black has nothing to worry.}) 17. Rxf6+ $1 $18 {[%emt 0:00:43][%mdl 512]} Bxf6 {[%emt 0:02:09]} (17... gxf6 $2 18. Qxd5+ Kg7 19. Qh5 $18) 18. Qxd5+ {[%emt 0:00:16]} Kf8 {[%emt 0:00:37]} 19. Be3 {[%emt 0:07:27]} (19. Bc4 Ne5 20. Be3 Qc6 21. Qxc6 Nxc6 $11) (19. Bf4 $142 Qd4 20. Bd6+ Ke8 21. Qe6+ Kd8 22. Re1) 19... Ne7 {[%emt 0:08:02] Black is weak on the light squares} 20. Qf3 {[%emt 0:04:55][%mdl 1024] White has strong compensation.} Qd6 {[%emt 0:02:39] [#]} (20... Qc7 {was necessary.} 21. Nc4 (21. Bxa7 b6 $11) 21... Rd8) 21. Rd1 $1 {[%emt 0:01:09]} (21. Bxa7 Qd5 22. Qxd5 Nxd5 $14) 21... Qb4 {[%emt 0:01:03]} 22. Bd4 {[%emt 0:06:11]} (22. Bxa7 Kf7 $16) (22. Qxb7 Qxb2 23. Nc4 (23. Qxa7 h5 $16) 23... Qc2 $18) (22. Bc4 $142) 22... Rd8 {[%emt 0:00:59]} 23. Bc4 $2 {[%emt 0:02:06]} ({Weaker is} 23. Bxa7 Rxd1+ 24. Qxd1 g6 $11) (23. Qh5 $18 {[%cal Ob5c4] aiming for Bc4!} Qd6 24. Bc4) 23... Nc6 $1 $11 {[%emt 0:02:12]} 24. Bxf6 $40 {[%emt 0:05:12][%mdl 128] Black needs to defend precisely. A strong pair of Bishops.} (24. Be3 {is interesting.} Rxd1+ 25. Qxd1 Ke7 26. Kf1) 24... Rxd1+ {[%emt 0:00:02]} 25. Qxd1 {[%emt 0:00:01]} gxf6 {[%emt 0:00:01]} 26. g3 {[%emt 0:00:45]} Ne5 {[%emt 0:01:49][%cal Of8g7]} 27. Bb3 {[%emt 0:01:17]} (27. Be2 $15) 27... Ke7 {[%emt 0:00:16]} ({Don't play} 27... Kg7 $6 28. Nc4 Rf8 29. Ne3 $11) (27... Qd2 $17 {Strongly threatening ...Qxd1+.} 28. Qxd2 Nf3+ 29. Kg2 Nxd2) 28. Qd5 {[%emt 0:01:07] Hoping for Qe6+.} Qb6 {Wards off Qe6+} 29. Qe4 {[%emt 0:01:34]} Qc6 {[%emt 0:01:43]} 30. Bd5 {[%emt 0:00:24][%mdl 64] Skewer} Qc1+ {[%emt 0:00:11]} 31. Kg2 {[%emt 0:00:01][%cal Oa3c4] Really sharp! White is more active.} Rc8 {[%emt 0:00:51][%mdl 8192] Wards off Nc4} (31... Qd2 $1 $14) 32. Qxh7+ $18 {[%emt 0:00:28]} Kd6 {[%emt 0:00:01]} 33. Qxb7 {[%emt 0:00:36] Nb5+ would kill now.} a6 {[%emt 0:00:56] [#] Wards off Nb5+} 34. Be4 $1 {[%emt 0:00:28]} (34. Qxa6+ $2 {is the wrong capture.} Kxd5 35. h4 Qc6 36. Qxc6+ Nxc6 $19) 34... a5 {[%emt 0:00:33]} (34... Nd7 $18 35. Qxa6+ Ke7) 35. Nb5+ {[%emt 0:00:23] White mates.} Ke6 {[%emt 0:00:02]} 36. Nd4+ {[%emt 0:00:16]} Kd6 {[%emt 0:00:06]} 37. Nf5+ {[%emt 0:00:12] An entertaining game by Polyik.   Weighted Error Value: White=0.39/Black=0.67} 1-0

[Event "SixDays Budapest January-IMA 2023"]
[Site "Budapest"]
[Date "2023.01.25"]
[Round "5.1"]
[White "Taragan, Uri"]
[Black "Ongut, Tamas Gunes"]
[Result "0-1"]
[ECO "A53"]
[WhiteElo "1733"]
[BlackElo "2340"]
[Annotator "TA"]
[PlyCount "64"]
[EventDate "2023.01.23"]
[EventType "tourn"]
[EventCountry "HUN"]
[SourceTitle "playchess.com"]
[Source "ChessBase"]
[SourceQuality "1"]
[TimeControl "5400+30"]

{[%evp 11,63,41,41,24,39,25,24,15,49,29,43,16,34,18,28,8,11,3,35,1,17,4,4,-11,0,-16,5,-41,-14,-41,-53,-78,-81,-119,-122,-141,-144,-263,-226,-281,-291,-351,-345,-531,-528,-1464,-1434,-29986,-29987,-29990,-29991,-29991,-29992,-29999]} 1. d4 {[%emt 0:00:01]} Nf6 {[%emt 0:03:12]} 2. c4 d6 {[%emt 0:00:10]} 3. Nc3 {[%emt 0:00:19]} Nbd7 {[%emt 0:00:08]} 4. e4 {[%emt 0:02:12]} e5 {[%emt 0:01:09]} 5. d5 {[%emt 0:01:22]} Nc5 {[%emt 0:00:06]} 6. Qc2 {[%emt 0:02:21]} a5 {[%emt 0:01:11]} 7. f3 {[%emt 0:06:40] A53: Old Indian Defence without Nf3.} Be7 {[%emt 0:00:06]} 8. Be3 {[%emt 0:03:04]} O-O {[%emt 0:01:38]} 9. Nge2 {[%emt 0:02:41][%cal Bg1e2,Be2c1,Bc1d3][%mdl 32] [#] White has an edge.} h5 $146 {[%emt 0:00:21]} ({Predecessor:} 9... Na6 10. Nc1 Ne8 11. g4 Bh4+ 12. Bf2 Nb4 13. Qe2 g6 14. a3 Na6 15. Bxh4 Qxh4+ {0-1 Koellner,U (1918)-Nohr,J (1941) Werther Schloss op-B 12th 2006 (5)}) 10. Nc1 {[%emt 0:03:36]} c6 {[%emt 0:03:01]} 11. Nd3 {[%emt 0:02:15]} cxd5 {[%emt 0:00:13]} 12. cxd5 {[%emt 0:05:05]} b6 {[%emt 0:05:53]} 13. Nxc5 {[%emt 0:05:04]} bxc5 {[%emt 0:00:35]} 14. Bd3 {[%emt 0:04:42]} Ne8 {[%emt 0:06:08]} 15. Qe2 {[%emt 0:10:23] Black is weak on the light squares} Bg5 {[%emt 0:00:34]} 16. Bxg5 {[%emt 0:02:01]} Qxg5 {[%emt 0:00:09]} 17. Qd2 {[%emt 0:00:09]} Qe7 {[%emt 0:05:10]} 18. Qc2 {[%emt 0:02:35]} Nc7 {[%emt 0:02:02]} 19. a3 {[%emt 0:07:41]} (19. b3 $11) 19... Bd7 {[%emt 0:05:38]} 20. h4 {[%emt 0:03:24]} Rfb8 {[%emt 0:01:33][%cal Bf8b8,Bb8b5,Bb5b3,Bb3f3,Bf3f2][%mdl 32]} 21. Rb1 {[%emt 0:00:15]} Nb5 {[%emt 0:02:44] Black is more active.} 22. Nxb5 {[%emt 0:01:30]} Bxb5 {[%emt 0:00:07]} 23. Bxb5 {[%emt 0:00:14]} Rxb5 {[%emt 0:00:07]} 24. g4 {[%emt 0:01:34]} (24. Qf2 $17) 24... Qf6 {[%emt 0:01:31]} 25. Qe2 {[%emt 0:06:39]} Rb3 {[%emt 0:00:11]} 26. gxh5 {[%emt 0:12:44]} Rxf3 {[%emt 0:00:09] [#] aiming for ...Rb8.} 27. h6 {[%emt 0:03:33]} (27. Qd2 $142) 27... Qf4 $19 {[%emt 0:01:21]} (27... gxh6 $2 {perishes.} 28. Qg2+ Kh7 29. Ke2 $19) 28. Kd1 {[%emt 0:02:33]} Rf2 {[%emt 0:00:10] Dodges Rh2} 29. Qd3 {[%emt 0:00:39]} c4 {[%emt 0:00:11][%mdl 64] [#] Deflection. Black mates.} 30. Qc3 {[%emt 0:00:29]} Qxe4 {[%emt 0:00:12]} 31. h7+ {[%emt 0:00:30]} Kh8 {[%emt 0:00:07]} 32. Rc1 {[%emt 0:02:42]} Qe2# {A cool game by Ongut.   Weighted Error Value: White=0.78/Black=0.08 (flawless)} 0-1

[Event "SixDays Budapest January-IMA 2023"]
[Site "Budapest"]
[Date "2023.01.25"]
[Round "5.2"]
[White "Szeberenyi, Adam"]
[Black "Polyik, Peter"]
[Result "1-0"]
[ECO "D11"]
[WhiteElo "2331"]
[BlackElo "2323"]
[Annotator "TA"]
[PlyCount "81"]
[EventDate "2023.01.23"]
[EventType "tourn"]
[EventCountry "HUN"]
[SourceTitle "playchess.com"]
[Source "ChessBase"]
[SourceQuality "1"]
[TimeControl "5400+30"]

{[%evp 13,81,19,22,33,30,17,26,24,34,34,20,22,0,10,10,0,0,0,26,0,8,0,0,0,8,0,0,0,0,0,2,0,0,0,0,0,0,-1,0,0,0,0,0,0,0,0,0,-8,0,0,0,0,0,0,37,37,36,8,12,12,11,12,23,6,1322,1322,1322,1322,1182,1082]} 1. d4 {[%emt 0:00:04]} d5 {[%emt 0:00:26]} 2. c4 {[%emt 0:00:12]} c6 {[%emt 0:00:07]} 3. e3 {[%emt 0:00:28]} Nf6 {[%emt 0:00:06]} 4. Nf3 {[%emt 0:00:06]} Bg4 {[%emt 0:00:11]} 5. Nc3 {[%emt 0:01:18]} e6 {[%emt 0:00:16]} 6. h3 {[%emt 0:00:27]} Bh5 {[%emt 0:00:08]} 7. g4 {[%emt 0:02:22]} Bg6 {[%emt 0:00:05]} 8. Ne5 {[%emt 0:00:06] D11: Slav Defence: 3 Nf3 sidelines and 3...Nf6 4 e3 Bg4.} Nbd7 {[%emt 0:00:33]} 9. Nxg6 {[%emt 0:00:24]} hxg6 {[%emt 0:00:06]} 10. g5 {[%emt 0:02:12] White has an edge.} Ne4 {[%emt 0:01:02]} 11. Nxe4 {[%emt 0:01:48]} dxe4 {[%emt 0:00:06]} 12. h4 {[%emt 0:03:27]} Bb4+ {[%emt 0:08:11]} 13. Bd2 {[%emt 0:00:08]} Qa5 {[%emt 0:00:09][%cal Od7e5]} 14. Bxb4 {[%emt 0:01:52][%mdl 64] Remove Defender} Qxb4+ {[%emt 0:00:07]} 15. Qd2 {[%emt 0:00:03]} Qxd2+ {[%emt 0:00:08]} 16. Kxd2 {[%emt 0:00:03]} f5 {[%emt 0:00:13]} 17. gxf6 {[%emt 0:07:22]} gxf6 {[%emt 0:01:15]} 18. Be2 {[%emt 0:02:53]} Kf7 {[%emt 0:08:37] [#]} 19. f3 $146 {[%emt 0:11:56]} ({Predecessor:} 19. Rag1) 19... exf3 {[%emt 0:01:24]} 20. Bxf3 {[%emt 0:00:02]} f5 {[%emt 0:15:49]} 21. b4 {[%emt 0:01:02]} e5 {[%emt 0:01:29]} 22. Raf1 {[%emt 0:12:30]} exd4 {[%emt 0:09:09]} 23. exd4 {[%emt 0:00:03]} Nf6 {[%emt 0:00:43]} 24. Re1 {[%emt 0:03:56]} a5 {[%emt 0:19:44]} 25. b5 {[%emt 0:00:15]} cxb5 {[%emt 0:00:08]} 26. cxb5 {[%emt 0:00:22]} Rad8 {[%emt 0:00:16]} 27. Bxb7 {[%emt 0:00:31]} Rxd4+ {[%emt 0:00:09]} 28. Kc3 $1 {[%emt 0:00:45]} Rhd8 {[%emt 0:10:39]} 29. Re2 {[%emt 0:13:33]} Rb4 {[%emt 0:06:25]} 30. Rb2 {[%emt 0:00:53]} Rdd4 {[%emt 0:01:47]} 31. Rxb4 {[%emt 0:01:21]} Rxb4 $11 {[%emt 0:00:05][%mdl 4096] Endgame KRB-KRN} 32. Bc6 {[%emt 0:02:46] a3 is the strong threat.} Ne4+ {[%emt 0:06:35]} 33. Kc2 {[%emt 0:00:35]} Rc4+ {[%emt 0:00:12]} 34. Kd3 {[%emt 0:00:53]} Rb4 {[%emt 0:00:05] Hoping for ...Nf2+.} (34... Rxc6 $2 35. bxc6 Nc5+ 36. Kd4 $18) 35. Rc1 {[%emt 0:03:02]} (35. a3 $5 {[%cal Ra3b4]} Nc5+ 36. Ke3 Rb3+ 37. Kd4 Ne6+ 38. Kc4 $14) 35... Nd6 {[%emt 0:04:58]} 36. a3 {[%emt 0:11:15]} Rxh4 {[%emt 0:03:11]} 37. b6 {[%emt 0:00:43] Strongly threatening Re1.} Rh3+ {[%emt 0:01:58]} 38. Kc2 {[%emt 0:04:51]} Rxa3 $2 {[%emt 0:00:22][%mdl 8192]} (38... Ke6 $11) 39. Rd1 $1 $18 {[%emt 0:00:06] White is clearly winning.} Ke7 {[%emt 0:00:51] [#]} 40. Re1+ $1 {[%emt 0:00:06]} Kf6 {[%emt 0:00:48] [#]} 41. Bd5 $1 {[%emt 0:00:18] Weighted Error Value: White=0.03 (flawless) /Black=0.04 (flawless)} 1-0

[Event "SixDays Budapest January-IMA 2023"]
[Site "Budapest"]
[Date "2023.01.25"]
[Round "5.3"]
[White "Heimisson, Hilmir Freyr"]
[Black "Leszko, Bence"]
[Result "1/2-1/2"]
[ECO "C07"]
[WhiteElo "2321"]
[BlackElo "2298"]
[Annotator "TA"]
[PlyCount "212"]
[EventDate "2023.01.23"]
[EventType "tourn"]
[EventCountry "HUN"]
[SourceTitle "playchess.com"]
[Source "ChessBase"]
[SourceQuality "1"]
[TimeControl "5400+30"]

{[%evp 10,212,12,10,14,8,23,18,18,21,20,25,24,20,37,28,55,0,4,0,0,0,6,0,0,0,5,-11,0,-28,-18,-34,-24,-34,-18,-31,-20,-26,-6,0,0,-12,-10,-23,-5,-8,-6,-6,-5,-67,-26,-40,0,0,0,0,0,0,0,-72,-72,-72,-72,-72,-72,-72,-72,-72,-72,-72,-72,-72,-72,-72,-72,-72,-72,-72,-72,-72,-72,-72,-72,-72,0,-72,-72,-72,-72,-73,-73,-73,-73,-73,-72,-73,-73,-79,-79,-79,-79,-79,-79,-79,-79,-79,-79,-79,-79,-79,-79,-79,-79,-79,-79,-79,-27,-27,-27,-27,-27,-30,-31,-31,-5,-104,-104,-104,-104,-104,-104,-104,-104,-104,-104,-104,-104,-104,-104,-104,-104,-104,-104,-104,-104,-104,-104,-104,-104,-104,-104,-104,-104,-104,-104,-104,-104,-104,-104,-104,-104,-104,-104,-104,-104,-104,-104,-104,-104,-104,-104,-104,-104,-104,-104,-104,-104,-104,0,0,0,0,0,0,0,0,0,0,0,0,0,0,0,0,0,0,0,0,0,0,0,0,0,0,0]} 1. e4 {[%emt 0:02:06]} e6 {[%emt 0:09:13]} 2. d4 {[%emt 0:00:14]} d5 {[%emt 0:00:04]} 3. Nd2 {[%emt 0:00:16]} c5 {[%emt 0:00:05]} 4. exd5 {[%emt 0:00:11]} Qxd5 {[%emt 0:00:08]} 5. Ngf3 {[%emt 0:00:10]} cxd4 {[%emt 0:00:04]} 6. Bc4 {[%emt 0:00:09]} Qd7 {[%emt 0:00:05] C07: French Tarrasch: 3...c5, 4 Ngf3 and 4 exd5 Qxd5.} 7. O-O {[%emt 0:00:14]} Nc6 {[%emt 0:00:06]} 8. Nb3 {[%emt 0:00:08][%cal Rb3d4]} a6 {[%emt 0:00:05]} 9. Nbxd4 {[%emt 0:00:09]} Nxd4 {[%emt 0:00:04]} 10. Qxd4 {[%emt 0:00:09]} Qxd4 {[%emt 0:00:06]} 11. Nxd4 {[%emt 0:00:09]} b5 {[%emt 0:00:26]} 12. Be2 {[%emt 0:02:01] Black must now prevent a4.} Bb7 {[%emt 0:00:09]} 13. c4 {[%emt 0:10:07]} ({White should try} 13. c3 $14) 13... bxc4 $1 $11 {[%emt 0:01:11]} 14. Bxc4 {[%emt 0:06:24]} Nf6 {[%emt 0:00:18]} 15. Bb3 {[%emt 0:01:54]} Bd6 {[%emt 0:04:22]} 16. Ba4+ {[%emt 0:08:21]} Ke7 {[%emt 0:00:35] [#]} 17. Re1 $146 {[%emt 0:01:02] [#] And now Nf5+ would win.} ({Predecessor:} 17. Bd2 Rhc8 18. Rac1 Ne4 19. Be3 Nc5 20. Bc2 Bd5 21. Rfe1 g6 22. a3 Nd7 23. Bd3 {½-½ Horvath,C (2540)-Chernin,A (2610) HUN-chT 9899 1998}) 17... Bb4 {[%emt 0:00:33]} 18. Rd1 {[%emt 0:04:00] Hoping for Bc6.} (18. Bc6 $5 {[%cal Rc6b7]} Rhb8 19. Rd1 $11) 18... Rhc8 {[%emt 0:01:22] Prevents Bc6} 19. a3 {[%emt 0:06:57]} Bd6 {[%emt 0:00:41]} 20. Bg5 {[%emt 0:03:41]} h6 {[%emt 0:04:39]} 21. Bh4 {[%emt 0:00:19]} g5 {[%emt 0:00:57]} 22. Bg3 {[%emt 0:00:33] [#] Strongly threatening Bxd6+.} Bxg3 {[%emt 0:00:04]} 23. hxg3 {[%emt 0:00:08]} Bd5 {[%emt 0:00:58]} 24. Rac1 {[%emt 0:01:25]} a5 {[%emt 0:02:07]} 25. Bb5 {[%emt 0:02:12]} Rab8 {[%emt 0:00:58]} 26. a4 {[%emt 0:00:02]} Kf8 {[%emt 0:01:39]} 27. f3 {[%emt 0:01:41]} Ne8 {[%emt 0:05:08]} 28. Kf2 {[%emt 0:08:33]} Nd6 {[%emt 0:00:48]} 29. Rh1 {[%emt 0:00:57]} (29. g4 $11) 29... Kg7 {[%emt 0:01:56]} 30. g4 {[%emt 0:00:09]} Nxb5 {[%emt 0:10:57]} (30... e5 $5 {[%cal Re5d4]} 31. Nf5+ Nxf5 32. gxf5 e4 $15) 31. axb5 {[%emt 0:02:00]} Rc4 {[%emt 0:00:41]} 32. Rxc4 {[%emt 0:00:31]} Bxc4 {[%emt 0:00:04][%mdl 4096] Endgame KRB-KRN} 33. Ra1 {[%emt 0:01:18]} Bxb5 {[%emt 0:00:21]} 34. Rxa5 {[%emt 0:00:12]} (34. b3 $1 $11) 34... Bc4 $17 {[%emt 0:00:12]} 35. b3 {[%emt 0:05:23]} Bxb3 {[%emt 0:00:23]} 36. Nxb3 {[%emt 0:00:07]} Rxb3 {[%emt 0:00:04] KR-KR} 37. Ra7 {[%emt 0:00:18]} Rb2+ {[%emt 0:00:31]} 38. Kg3 {[%emt 0:00:13]} Re2 {[%emt 0:00:07]} 39. Re7 {[%emt 0:01:18]} Ra2 {[%emt 0:02:47]} 40. Rb7 {[%emt 0:00:23]} Ra8 {[%emt 0:00:09]} 41. Rc7 {[%emt 0:00:14]} Kg6 {[%emt 0:00:20]} 42. Re7 {[%emt 0:00:14]} Rb8 {[%emt 0:00:07]} 43. Kf2 {[%emt 0:00:09]} Rb4 {[%emt 0:00:10]} 44. Re8 {[%emt 0:00:43]} Kg7 {[%emt 0:00:18]} 45. Kg3 {[%emt 0:00:53]} Ra4 {[%emt 0:00:05]} 46. Re7 {[%emt 0:00:25]} Ra8 {[%emt 0:00:11]} (46... Kf8 $17 47. Rb7 Kg7) 47. Rb7 {[%emt 0:00:26]} (47. Rc7 $1 $11) 47... Rh8 {[%emt 0:00:33]} 48. Ra7 {[%emt 0:00:59]} Kg6 {[%emt 0:00:00]} 49. Re7 {[%emt 0:00:09]} h5 {[%emt 0:00:16]} 50. gxh5+ {[%emt 0:00:13]} Rxh5 {[%emt 0:00:05]} 51. Re8 {[%emt 0:00:08]} Kf6 {[%emt 0:00:18]} 52. Ra8 {[%emt 0:00:29]} Rh4 {[%emt 0:00:08]} 53. Ra7 {[%emt 0:00:21]} Rb4 {[%emt 0:00:09]} 54. Rc7 {[%emt 0:00:35]} Kg6 {[%emt 0:00:35]} 55. Re7 {[%emt 0:00:12]} Ra4 {[%emt 0:00:05]} 56. Rb7 {[%emt 0:01:55]} f5 {[%emt 0:00:23]} 57. Rb8 {[%emt 0:00:53]} Ra3 {[%emt 0:01:24]} 58. Rg8+ {[%emt 0:04:18]} Kf6 {[%emt 0:00:08]} 59. Kf2 {[%emt 0:00:28]} Ra7 {[%emt 0:01:07]} 60. Kg3 {[%emt 0:00:42]} Rg7 {[%emt 0:00:21]} 61. Rf8+ {[%emt 0:00:06]} Ke5 {[%emt 0:00:29]} 62. Ra8 {[%emt 0:00:11]} g4 {[%emt 0:00:23]} ({Better is} 62... Rb7 $17) 63. Ra5+ $1 $11 {[%emt 0:00:12]} Kf6 {[%emt 0:00:07]} 64. Kf4 {[%emt 0:01:22]} Rb7 {[%emt 0:00:35][%cal Oe6e5] ...e5+! is the strong threat.} 65. Ra6 {[%emt 0:00:35]} Rb2 {[%emt 0:00:23]} 66. Kg3 $1 {[%emt 0:03:21]} Kg5 {[%emt 0:03:08] ( -> ...f4+)} 67. Ra5 {[%emt 0:00:06]} (67. fxg4 $11 f4+ 68. Kf3) 67... Rb3 $17 {[%emt 0:01:07]} 68. Rc5 {[%emt 0:02:10]} Rd3 {[%emt 0:00:09]} 69. Ra5 {[%emt 0:05:36]} Rd5 {[%emt 0:00:59]} 70. f4+ {[%emt 0:01:23]} Kf6 {[%emt 0:00:07]} 71. Ra3 {[%emt 0:00:07]} Rd2 {[%emt 0:00:16]} 72. Rb3 {[%emt 0:00:42]} Ra2 {[%emt 0:00:50]} 73. Re3 {[%emt 0:00:21]} Ra6 {[%emt 0:00:24]} 74. Rb3 {[%emt 0:00:25]} Ra4 {[%emt 0:00:43]} 75. Re3 {[%emt 0:00:30]} Rb4 {[%emt 0:00:05]} 76. Rc3 {[%emt 0:00:17]} Re4 {[%emt 0:00:11]} 77. Ra3 {[%emt 0:00:16]} Ke7 {[%emt 0:00:34]} 78. Rd3 {[%emt 0:00:19]} Ke8 {[%emt 0:00:22]} 79. Ra3 {[%emt 0:02:10]} Kd7 {[%emt 0:01:03]} 80. Rd3+ {[%emt 0:06:58]} Ke7 {[%emt 0:00:10]} 81. Rd2 {[%emt 0:01:31]} Kf6 {[%emt 0:00:22]} 82. Rd3 {[%emt 0:00:14]} Kg6 {[%emt 0:00:06]} 83. Rd1 {[%emt 0:00:56]} Re2 {[%emt 0:02:26]} 84. Rd7 {[%emt 0:00:43]} Re3+ {[%emt 0:00:47]} 85. Kh4 {[%emt 0:00:25]} Kf6 {[%emt 0:00:32]} 86. Ra7 {[%emt 0:00:14]} Rb3 {[%emt 0:00:27]} 87. Rc7 {[%emt 0:00:08]} Rb1 {[%emt 0:01:02]} 88. Kg3 {[%emt 0:00:17]} Re1 {[%emt 0:00:24]} 89. Ra7 {[%emt 0:00:06]} Rf1 {[%emt 0:00:58]} 90. Rb7 {[%emt 0:00:07]} Ra1 {[%emt 0:00:22]} 91. Rc7 {[%emt 0:00:02]} Ra8 {[%emt 0:00:05]} 92. Rb7 {[%emt 0:00:10]} Re8 {[%emt 0:00:10]} 93. Ra7 {[%emt 0:00:24]} e5 {[%emt 0:01:22]} (93... Rc8 $17 94. Ra2 Rc3+ 95. Kf2 Rb3) 94. fxe5+ $1 $11 {[%emt 0:04:29] The position is equal.} Rxe5 {[%emt 0:00:29]} 95. Ra8 $1 {[%emt 0:00:14]} Re6 {[%emt 0:00:38]} 96. Kf4 {[%emt 0:00:58]} Re4+ {[%emt 0:00:14]} 97. Kg3 {[%emt 0:00:00]} Rb4 {[%emt 0:00:25]} 98. Rf8+ {[%emt 0:00:59]} Ke6 {[%emt 0:00:34]} 99. Re8+ {[%emt 0:00:26]} Kf7 {[%emt 0:00:10]} 100. Ra8 {[%emt 0:00:07]} Re4 {[%emt 0:00:08]} 101. Ra6 {[%emt 0:00:32]} Re6 {[%emt 0:00:14]} 102. Ra8 $1 {[%emt 0:00:06]} Kf6 {[%emt 0:00:07]} 103. Kf4 $1 {[%emt 0:00:49]} Re4+ {[%emt 0:00:25]} 104. Kg3 {[%emt 0:00:01]} Ke5 {[%emt 0:00:24]} 105. Ra5+ {[%emt 0:00:11]} Kf6 {[%emt 0:00:10]} 106. Ra8 {[%emt 0:00:04]} Ke5 {Weighted Error Value: White=0.11 (very precise) /Black=0.05 (flawless)} 1/2-1/2